bitfinex-derivatives/quotes_SOLF0:USTF0_20230404
["timestamp","ask_amount","ask_price","bid_price","bid_amount"]
[1680568887312,0.06237235,20.336,20.32,48.76]
[1680568887313,0.06237235,20.336,20.326,49.09]
[1680568888213,0.06237235,20.336,20.32,48.76]
[1680568888508,49.1,20.335,20.32,48.76]
[1680568892013,0.06237235,20.336,20.322,49.19]
[1680568896918,0.06237235,20.336,20.322,195.49]
[1680568898419,0.06237235,20.336,20.322,49.19]
[1680568899418,49.25,20.333,20.32,48.76]
[1680568900721,100.0,20.335,20.32,97.95]
[1680568903018,48.85237235,20.336,20.32,97.95]
[1680568903221,0.06237235,20.336,20.323,49.19]
[1680568912834,0.06237235,20.336,20.323,195.49]
[1680568917536,0.06237235,20.336,20.326,146.3]
[1680568917730,49.25,20.344,20.329,195.36]
[1680568917933,49.25,20.344,20.33,194.4178]
[1680568918834,49.31220173,20.344,20.33,194.48793097]
[1680568919238,0.06220173,20.344,20.333,146.3]
[1680568920632,0.06220173,20.344,20.337,146.3]
[1680568921439,0.06220173,20.344,20.339,49.19]
[1680568921738,0.06355606,20.349,20.339,49.19]
[1680568921939,0.06577104,20.351,20.339,49.19]
[1680568922439,0.06577104,20.351,20.34,48.1503]
[1680568923339,48.79,20.348,20.34,48.1503]
[1680568923533,48.79,20.348,20.337,0.06481211]
[1680568927240,49.1,20.349,20.337,0.06481211]
[1680568927535,0.06577104,20.351,20.337,0.06481211]
[1680568927536,0.06577104,20.351,20.34,49.19]
[1680568928343,49.1,20.349,20.337,0.06481211]
[1680568929935,10.0,20.348,20.337,0.06481211]
[1680568930134,48.79,20.345,20.337,0.06481211]
[1680568930336,44.5296,20.344,20.337,0.06481211]
[1680568933144,10.0,20.343,20.337,0.06481211]
[1680568933343,10.0,20.343,20.333,0.06773743]
[1680568934846,44.5296,20.344,20.333,0.06773743]
[1680568935145,0.06462943,20.345,20.333,195.42773743]
[1680568936050,0.06462943,20.345,20.336,49.06]
[1680568936541,0.06462943,20.345,20.336,195.36]
[1680568937346,0.06462943,20.345,20.339,49.09]
[1680568937543,0.06868422,20.349,20.339,49.09]
[1680568937744,0.06958984,20.351,20.339,49.09]
[1680568938250,0.06958984,20.351,20.34,48.7058]
[1680568939542,0.06958984,20.351,20.34,195.0058]
[1680568941649,0.06958984,20.351,20.343,49.06]
[1680568941851,0.06958984,20.351,20.346,49.06]
[1680568942046,0.06958984,20.351,20.343,146.3]
[1680568942047,0.0604705,20.356,20.343,146.3]
[1680568942245,0.0604705,20.356,20.347,36.36]
[1680568943646,0.0604705,20.356,20.344,36.64]
[1680568945453,36.47,20.354,20.341,0.06735109]
[1680568945647,45.036,20.353,20.341,0.06735109]
[1680568946749,36.58,20.351,20.341,0.06735109]
[1680568947951,36.46,20.348,20.341,0.06735109]
[1680568948150,36.5,20.345,20.332,47.5158]
[1680568964666,36.5,20.345,20.331,36.64]
[1680568967268,36.55,20.343,20.329,36.36]
[1680568967666,10.0,20.342,20.329,36.36]
[1680568969265,36.55,20.343,20.329,36.36]
[1680568969463,36.47,20.345,20.331,36.64]
[1680568969668,36.54013946,20.345,20.331,36.64]
[1680568969871,0.07013946,20.345,20.334,36.63]
[1680568974075,0.07013946,20.345,20.329,24.03723655]
[1680568974076,0.07013946,20.345,20.337,182.8]
[1680568974277,36.47,20.358,20.344,36.64]
[1680568975375,36.53715741,20.358,20.344,36.70118192]
[1680568981974,36.53715741,20.358,20.346,36.5]
[1680568983181,0.06715741,20.358,20.349,36.36]
[1680568989087,0.06715741,20.358,20.353,36.64]
[1680568989386,0.07090842,20.363,20.349,36.36]
[1680568989586,36.5,20.362,20.348,0.06686541]
[1680568989787,47.4177,20.361,20.348,0.06686541]
[1680568989979,10.0,20.36,20.348,0.06686541]
[1680568990879,47.4177,20.361,20.348,0.06686541]
[1680568992084,47.4177,20.361,20.349,36.5]
[1680568992583,46.58,20.36,20.348,0.06686541]
[1680568993187,36.55,20.357,20.348,0.06686541]
[1680568993386,10.0,20.356,20.348,0.06686541]
[1680568998893,36.55,20.351,20.348,0.00686541]
[1680568999204,110.0,20.356,20.337,14.4805079]
[1680568999205,36.64,20.349,20.337,14.4805079]
[1680568999395,57.4187,20.348,20.334,36.64]
[1680568999895,10.0,20.347,20.334,36.64]
[1680569002198,24.31,20.346,20.335,24.38]
[1680569006296,47.48246084,20.348,20.339,24.46]
[1680569006495,47.4187,20.348,20.339,24.46]
[1680569008198,34.46,20.347,20.336,24.46]
[1680569010299,24.46,20.347,20.336,24.46]
[1680569011000,10.0,20.346,20.336,24.46]
[1680569012103,24.46,20.345,20.335,24.38]
[1680569012401,10.0,20.344,20.335,24.38]
[1680569015598,24.46,20.345,20.335,24.38]
[1680569017901,24.46,20.343,20.332,24.46]
[1680569018202,10.0,20.342,20.332,24.46]
[1680569021699,0.06100793,20.345,20.336,24.39]
[1680569022104,0.06100793,20.345,20.338,24.38]
[1680569022706,0.06100793,20.345,20.336,24.38]
[1680569025709,0.06100793,20.345,20.342,24.38]
[1680569025909,0.06549765,20.351,20.342,24.38]
[1680569032013,0.06549765,20.351,20.344,24.46]
[1680569037811,24.31,20.36,20.35,24.46]
[1680569038116,24.31,20.363,20.352,24.39]
[1680569039519,0.06357857,20.364,20.355,24.39]
[1680569047023,0.06357857,20.364,20.359,24.38]
[1680569047220,0.0657287,20.369,20.361,24.46]
[1680569047412,17.67410924,20.371,20.361,24.46]
[1680569047721,24.50070866,20.372,20.361,24.46]
[1680569047919,3.05633615,20.371,20.361,24.46]
[1680569048322,108.68930894,20.37,20.361,24.46]
[1680569048922,108.68930894,20.369,20.361,24.46]
[1680569049222,24.50070866,20.372,20.361,24.46]
[1680569049420,108.68991814,20.371,20.364,24.38]
[1680569049722,0.07070866,20.372,20.364,24.38]
[1680569051518,0.07070866,20.372,20.358,44.43569278]
[1680569051519,0.07070866,20.372,20.368,24.46]
[1680569051724,24.46,20.378,20.368,24.46]
[1680569051725,108.70806759,20.377,20.368,24.46]
[1680569052027,0.06891253,20.377,20.373,24.39]
[1680569052228,108.66749995,20.381,20.373,24.39]
[1680569052524,34.31,20.38,20.369,24.39]
[1680569052920,24.31,20.38,20.369,24.39]
[1680569054128,10.0,20.379,20.369,24.39]
[1680569055530,24.31,20.38,20.369,24.39]
[1680569063641,10.0,20.379,20.369,24.39]
[1680569064640,24.31,20.38,20.369,24.39]
[1680569065441,24.43,20.376,20.368,0.0679323]
[1680569066041,10.0,20.375,20.368,0.0679323]
[1680569068336,24.43,20.376,20.368,0.0679323]
[1680569068536,24.31,20.381,20.37,24.46]
[1680569070441,45.25148725,20.382,20.373,24.46]
[1680569070642,0.06478725,20.382,20.373,24.46]
[1680569070838,0.06478725,20.382,20.377,24.21988454]
[1680569071144,24.5008443,20.387,20.377,24.21988454]
[1680569071345,0.0708443,20.387,20.38,24.46]
[1680569072348,0.0708443,20.387,20.383,24.38]
[1680569072648,0.06680464,20.392,20.383,24.38]
[1680569072947,0.06680464,20.392,20.386,24.38]
[1680569073147,15.06031279,20.394,20.386,24.38]
[1680569073349,0.06988118,20.396,20.386,24.38]
[1680569073544,3.12029889,20.396,20.386,24.38]
[1680569073744,13.12029889,20.396,20.386,24.38]
[1680569073944,3.05041771,20.395,20.386,24.38]
[1680569076246,0.06988118,20.396,20.386,24.38]
[1680569076440,3.12042929,20.396,20.386,24.38]
[1680569076845,0.06988118,20.396,20.386,24.38]
[1680569077051,0.06988118,20.396,20.389,24.38]
[1680569082155,0.06988118,20.396,20.385,36.62]
[1680569095566,36.87,20.395,20.383,0.06483511]
[1680569095770,36.73,20.392,20.383,0.06483511]
[1680569096272,10.0,20.391,20.383,0.06483511]
[1680569096668,56.391,20.391,20.383,0.06483511]
[1680569096872,36.94,20.389,20.377,62.07493584]
[1680569097171,10.0,20.388,20.377,47.3667]
[1680569098672,36.94,20.389,20.377,47.3667]
[1680569101173,0.07145903,20.39,20.378,36.94]
[1680569102170,0.07145903,20.39,20.38,36.94]
[1680569104469,0.07145903,20.39,20.383,36.59]
[1680569104674,0.07145903,20.39,20.389,36.72]
[1680569104870,0.06890159,20.397,20.389,36.72]
[1680569105071,0.06939414,20.4,20.389,36.72]
[1680569105773,0.06939414,20.4,20.39,46.8574]
[1680569108071,0.06939414,20.4,20.393,36.73]
[1680569108377,0.06939414,20.4,20.396,36.72]
[1680569108574,0.06521372,20.405,20.396,36.72]
[1680569108769,0.06847032,20.408,20.396,36.72]
[1680569111678,36.87,20.407,20.393,36.73]
[1680569112475,85.3145,20.407,20.393,36.73]
[1680569115684,10.0,20.406,20.393,36.73]
[1680569115879,85.3145,20.407,20.39,83.7974]
[1680569116080,48.4445,20.407,20.395,36.62]
[1680569120486,36.64,20.402,20.39,83.7974]
[1680569120781,148.4445,20.407,20.39,46.8574]
[1680569120782,36.87,20.399,20.39,46.8574]
[1680569121079,10.0,20.398,20.39,46.8574]
[1680569121779,36.87,20.399,20.39,46.8574]
[1680569124085,10.0,20.398,20.39,46.8574]
[1680569125976,36.87,20.396,20.382,36.82]
[1680569126176,36.73,20.394,20.383,44.4701]
[1680569126375,36.64,20.39,20.383,44.4701]
[1680569126575,36.64,20.39,20.376,36.73]
[1680569126776,36.70783994,20.39,20.376,36.73]
[1680569127785,10.0,20.389,20.376,36.73]
[1680569129187,10.0,20.389,20.377,45.1804]
[1680569130487,36.70783994,20.39,20.377,45.1804]
[1680569135897,10.0,20.389,20.377,45.1804]
[1680569137801,36.73,20.387,20.377,45.1804]
[1680569138097,10.0,20.386,20.377,45.1804]
[1680569143104,36.73,20.387,20.377,45.1804]
[1680569145205,10.0,20.386,20.377,45.1804]
[1680569147107,24.6,20.385,20.377,45.1804]
[1680569147309,10.0,20.384,20.375,24.65]
[1680569147704,24.65,20.382,20.371,24.65]
[1680569147907,24.65,20.379,20.368,24.65]
[1680569148205,10.0,20.378,20.368,24.65]
[1680569148599,24.65,20.375,20.367,46.2471]
[1680569149704,24.65,20.374,20.367,46.2471]
[1680569152003,24.65,20.375,20.364,24.65]
[1680569153206,10.06346205,20.378,20.368,24.65]
[1680569153207,24.66346205,20.378,20.368,24.65]
[1680569153510,0.06346205,20.378,20.371,24.58]
[1680569154809,0.06346205,20.378,20.368,24.58]
[1680569155111,24.65,20.376,20.365,24.58]
[1680569155409,10.0,20.375,20.365,24.58]
[1680569155611,24.65,20.376,20.365,24.58]
[1680569158709,10.0,20.375,20.365,24.58]
[1680569158909,24.65,20.373,20.363,46.8122]
[1680569159110,10.0,20.372,20.363,46.8122]
[1680569159511,24.65,20.373,20.363,46.8122]
[1680569161012,24.65,20.376,20.365,24.58]
[1680569162016,24.71346205,20.378,20.367,24.65]
[1680569162208,0.06346205,20.378,20.365,37.01]
[1680569162815,0.06346205,20.378,20.369,36.88]
[1680569163510,0.06346205,20.378,20.371,36.74]
[1680569167414,0.06346205,20.378,20.369,37.01]
[1680569170627,0.06346205,20.378,20.372,37.01]
[1680569170820,0.06619677,20.382,20.372,37.01]
[1680569171021,0.06997488,20.384,20.372,37.01]
[1680569171525,0.06997488,20.384,20.373,46.7776]
[1680569176631,0.06997488,20.384,20.381,37.01]
[1680569176825,100.0,20.398,20.381,37.01]
[1680569176826,0.06235157,20.39,20.381,37.01]
[1680569177026,0.07107423,20.393,20.381,37.01]
[1680569177525,0.07107423,20.393,20.382,46.367]
[1680569180933,0.07107423,20.393,20.384,37.01]
[1680569188237,36.81107423,20.393,20.382,46.367]
[1680569190943,108.70921912,20.392,20.382,46.367]
[1680569191739,108.70921912,20.392,20.38,36.88]
[1680569192443,0.07107423,20.393,20.384,37.01]
[1680569192739,0.07107423,20.393,20.387,36.98]
[1680569192936,0.0662665,20.397,20.387,36.98]
[1680569193542,0.0662665,20.397,20.388,46.5211]
[1680569195037,108.81679972,20.397,20.388,46.5211]
[1680569195242,0.0662665,20.397,20.387,36.98]
[1680569195542,0.0662665,20.397,20.388,47.2865]
[1680569201447,0.0662665,20.397,20.39,37.01]
[1680569202948,0.0662665,20.397,20.388,84.2965]
[1680569204649,0.0662665,20.397,20.374,24.39444818]
[1680569204950,0.0662665,20.397,20.384,37.01]
[1680569208848,0.0662665,20.397,20.387,37.01]
[1680569209547,0.0662665,20.397,20.389,37.01]
[1680569222057,0.0662665,20.397,20.392,37.01]
[1680569222260,0.06697609,20.402,20.394,24.61]
[1680569222461,3.05361778,20.403,20.394,24.61]
[1680569222659,13.05361778,20.403,20.394,24.61]
[1680569222859,34.61,20.404,20.394,24.61]
[1680569223059,3.05261091,20.403,20.394,24.61]
[1680569225161,0.0653503,20.405,20.39,170.91]
[1680569225368,14.97263569,20.414,20.404,24.56]
[1680569225658,45.809,20.416,20.408,24.56]
[1680569225965,24.61,20.42,20.408,24.56]
[1680569226165,3.05034687,20.419,20.408,24.56]
[1680569227164,3.05034687,20.419,20.41,36.85]
[1680569227360,0.06973993,20.421,20.41,36.85]
[1680569228166,0.06973993,20.421,20.411,46.1818]
[1680569229056,0.06973993,20.421,20.414,36.54]
[1680569229363,0.06973993,20.421,20.417,36.57]
[1680569229560,0.06665405,20.426,20.417,36.57]
[1680569229760,36.85,20.431,20.417,36.57]
[1680569229761,13.1102227,20.429,20.417,36.57]
[1680569230062,3.04900859,20.428,20.417,36.57]
[1680569230263,3.04900859,20.427,20.417,36.57]
[1680569230462,3.04900859,20.426,20.417,36.57]
[1680569230655,0.06121411,20.429,20.417,36.57]
[1680569232063,0.06121411,20.429,20.419,36.85]
[1680569233664,46.91121411,20.429,20.415,36.54]
[1680569233964,3.05028248,20.428,20.415,36.54]
[1680569234163,13.05028248,20.428,20.415,36.54]
[1680569234363,3.05028248,20.427,20.415,36.54]
[1680569234561,3.05028248,20.426,20.415,36.54]
[1680569234861,3.05028248,20.425,20.415,36.54]
[1680569235063,3.05028248,20.424,20.415,36.54]
[1680569235362,10.0,20.428,20.415,36.54]
[1680569235555,3.05016539,20.427,20.415,36.54]
[1680569235962,36.85,20.423,20.414,0.06960081]
[1680569236163,49.41166539,20.422,20.414,0.06960081]
[1680569236362,46.3615,20.422,20.414,0.06960081]
[1680569236665,3.05026818,20.421,20.414,0.06960081]
[1680569236867,13.05026818,20.421,20.414,0.06960081]
[1680569237063,10.0,20.421,20.414,0.06960081]
[1680569237367,39.90082379,20.42,20.405,36.54]
[1680569237663,36.75,20.416,20.402,36.85]
[1680569238462,36.81015911,20.416,20.402,36.85]
[1680569243065,0.06015911,20.416,20.406,36.57]
[1680569247367,0.06015911,20.416,20.403,36.85]
[1680569248267,10.06015911,20.416,20.403,36.85]
[1680569248563,0.06015911,20.416,20.403,36.85]
[1680569267774,0.06015911,20.416,20.407,36.49]
[1680569267985,0.06015911,20.416,20.411,36.85]
[1680569268175,0.06997613,20.421,20.411,36.85]
[1680569268881,0.06997613,20.421,20.412,47.3494]
[1680569279789,0.06997613,20.421,20.414,36.49]
[1680569281189,0.06997613,20.421,20.417,36.49]
[1680569281387,0.06539114,20.426,20.417,36.49]
[1680569281589,3.12913633,20.429,20.417,36.49]
[1680569286692,36.85,20.428,20.414,36.49]
[1680569287692,0.06725417,20.429,20.417,36.49]
[1680569287996,3.12928742,20.429,20.417,36.49]
[1680569288293,3.06203325,20.428,20.417,36.49]
[1680569288593,0.06725417,20.429,20.417,36.49]
[1680569288793,3.12927333,20.429,20.417,36.49]
[1680569288996,3.06201916,20.428,20.417,36.49]
[1680569289193,0.06725417,20.429,20.417,36.49]
[1680569289393,3.12926678,20.429,20.417,36.49]
[1680569289693,3.06201261,20.428,20.417,36.49]
[1680569289893,0.06725417,20.429,20.417,36.49]
[1680569290297,112.16601279,20.429,20.417,36.49]
[1680569290490,3.06199799,20.428,20.417,36.49]
[1680569290692,0.06725417,20.429,20.417,36.49]
[1680569290888,112.16570092,20.429,20.417,36.49]
[1680569291093,3.06197926,20.428,20.417,36.49]
[1680569291294,0.06725417,20.429,20.417,36.49]
[1680569291695,112.16536111,20.429,20.417,36.49]
[1680569291894,3.06197106,20.428,20.417,36.49]
[1680569292095,24.41725417,20.429,20.418,24.55]
[1680569292295,3.0619664,20.428,20.418,24.55]
[1680569293799,109.06895803,20.427,20.418,24.55]
[1680569294199,109.06895803,20.426,20.418,24.55]
[1680569294397,109.06895803,20.428,20.418,24.55]
[1680569294593,109.06816317,20.427,20.418,24.55]
[1680569294802,109.06816317,20.426,20.418,24.55]
[1680569294996,10.0,20.425,20.418,24.55]
[1680569296305,10.0,20.428,20.418,24.55]
[1680569296507,109.07470573,20.427,20.418,24.55]
[1680569296805,10.0,20.426,20.418,24.55]
[1680569297497,24.55,20.425,20.414,24.55]
[1680569298097,10.0,20.424,20.414,24.55]
[1680569301003,24.55,20.425,20.414,24.55]
[1680569301202,109.06373393,20.424,20.414,24.55]
[1680569301407,24.55,20.425,20.414,24.55]
[1680569308713,70.3657,20.428,20.418,24.36]
[1680569309009,109.07843781,20.427,20.418,24.36]
[1680569314714,0.06725417,20.429,20.42,24.55]
[1680569315015,0.06725417,20.429,20.423,24.36]
[1680569315313,14.91416103,20.431,20.423,24.36]
[1680569315512,0.06744754,20.433,20.423,24.36]
[1680569315707,112.26029085,20.433,20.424,44.9121]
[1680569315913,109.13133571,20.432,20.424,44.9121]
[1680569316113,0.06744754,20.433,20.424,44.9121]
[1680569316308,112.25954571,20.433,20.424,44.9121]
[1680569316509,109.13055779,20.432,20.424,44.9121]
[1680569316714,0.06744754,20.433,20.424,44.9121]
[1680569316907,3.12904513,20.433,20.423,24.36]
[1680569317107,109.13232128,20.432,20.423,24.36]
[1680569317311,3.06159759,20.431,20.423,24.36]
[1680569317513,0.06744754,20.433,20.423,24.36]
[1680569317713,112.25961505,20.433,20.423,24.36]
[1680569318016,109.13056356,20.432,20.423,24.36]
[1680569318209,109.1980111,20.433,20.423,24.36]
[1680569318417,109.12955688,20.432,20.423,24.36]
[1680569318712,0.06744754,20.433,20.423,24.36]
[1680569318914,3.12905361,20.433,20.424,48.8962]
[1680569319117,109.1298043,20.432,20.424,48.8962]
[1680569319615,109.19725184,20.433,20.423,24.36]
[1680569319816,109.1284243,20.432,20.423,24.36]
[1680569320017,0.06744754,20.433,20.423,24.36]
[1680569320212,3.12900937,20.433,20.424,48.8962]
[1680569320416,109.12841445,20.432,20.424,48.8962]
[1680569320822,0.06744754,20.433,20.423,24.36]
[1680569321018,3.1290122,20.433,20.423,24.36]
[1680569321224,109.12757128,20.432,20.423,24.36]
[1680569321723,0.06744754,20.433,20.423,24.36]
[1680569321925,3.1300276,20.433,20.423,24.36]
[1680569322125,24.39,20.431,20.42,24.55]
[1680569322425,109.13878007,20.43,20.42,24.55]
[1680569324125,3.0631504,20.429,20.412,47.8247]
[1680569324427,3.0631504,20.429,20.397,100.0]
[1680569324428,24.39,20.419,20.4,38.87794059]
[1680569324727,24.55,20.416,20.404,24.36]
[1680569326123,10.0,20.415,20.404,24.36]
[1680569326324,10.0,20.415,20.402,47.8247]
[1680569326325,24.39,20.412,20.402,47.8247]
[1680569326828,10.0,20.411,20.402,47.8247]
[1680569328829,24.39,20.405,20.394,24.55]
[1680569330031,24.35,20.402,20.392,44.6529]
[1680569330831,24.39,20.405,20.393,24.55]
[1680569332132,84.3299,20.406,20.392,81.5529]
[1680569337738,47.4399,20.406,20.395,36.86]
[1680569339938,0.06629902,20.407,20.395,36.86]
[1680569342037,0.06629902,20.407,20.397,36.9]
[1680569342237,0.06629902,20.407,20.397,183.2]
[1680569342439,0.06629902,20.407,20.4,36.64]
[1680569342640,0.06629902,20.407,20.403,36.86]
[1680569342838,0.06796252,20.412,20.403,36.86]
[1680569343143,46.66184829,20.415,20.403,36.86]
[1680569344041,46.66184829,20.415,20.406,36.86]
[1680569346542,0.06204829,20.415,20.406,36.86]
[1680569347343,0.06204829,20.415,20.406,183.16]
[1680569347645,47.9477,20.424,20.406,183.16]
[1680569347646,47.9477,20.424,20.413,36.9]
[1680569348346,47.9477,20.424,20.417,36.9]
[1680569348838,0.06268693,20.428,20.417,36.9]
[1680569349645,0.06268693,20.428,20.42,36.79]
[1680569356746,3.13167153,20.428,20.42,36.79]
[1680569357349,0.06268693,20.428,20.42,36.79]
[1680569358445,112.21496834,20.428,20.42,36.79]
[1680569358648,0.06268693,20.428,20.42,36.79]
[1680569360047,112.21415283,20.428,20.42,36.79]
[1680569360250,0.06268693,20.428,20.42,36.79]
[1680569360550,0.06268693,20.428,20.422,36.71]
[1680569360751,112.22213736,20.432,20.422,36.71]
[1680569361050,0.07117864,20.432,20.422,36.71]
[1680569361250,0.07117864,20.432,20.423,48.8383]
[1680569361944,112.23508711,20.432,20.423,48.8383]
[1680569362141,0.07117864,20.432,20.423,48.8383]
[1680569362942,112.23268117,20.432,20.423,48.8383]
[1680569363148,112.16150253,20.431,20.422,36.71]
[1680569363343,0.07117864,20.432,20.422,36.71]
[1680569366655,36.97117864,20.432,20.419,84.2105]
[1680569375462,13.06918478,20.431,20.419,84.2105]
[1680569375760,10.0,20.431,20.419,84.2105]
[1680569375960,36.97117864,20.432,20.419,84.2105]
[1680569376261,3.06914248,20.431,20.419,84.2105]
[1680569376557,13.06914248,20.431,20.419,84.2105]
[1680569376761,36.97117864,20.432,20.419,84.2105]
[1680569376961,3.06913248,20.431,20.419,84.2105]
[1680569378963,36.9,20.43,20.419,47.3505]
[1680569379158,10.0,20.429,20.418,0.06951351]
[1680569379364,56.9786,20.429,20.418,0.06951351]
[1680569382566,46.9786,20.429,20.418,0.06951351]
[1680569385366,36.69,20.426,20.418,0.06951351]
[1680569392672,46.9786,20.429,20.418,0.06951351]
[1680569393277,0.07117864,20.432,20.42,36.86]
[1680569396276,0.07117864,20.432,20.423,36.64]
[1680569397070,0.07117864,20.432,20.425,24.53]
[1680569412182,0.07117864,20.432,20.422,24.53]
[1680569420086,10.07117864,20.432,20.422,24.53]
[1680569420588,0.07117864,20.432,20.422,24.53]
[1680569425993,10.07117864,20.432,20.422,24.53]
[1680569426393,0.07117864,20.432,20.422,24.53]
[1680569430696,24.39,20.429,20.419,47.9082]
[1680569445905,0.07117864,20.432,20.421,24.35]
[1680569451010,0.07117864,20.432,20.425,24.53]
[1680569457112,0.07117864,20.432,20.422,24.53]
[1680569457310,24.53,20.426,20.419,47.9082]
[1680569457511,24.53,20.424,20.418,0.06951351]
[1680569457714,24.53,20.424,20.414,0.06037022]
[1680569457916,24.53,20.424,20.412,24.58912609]
[1680569461712,10.0,20.423,20.412,24.58912609]
[1680569462216,24.39,20.422,20.412,0.06912609]
[1680569468519,0.06080426,20.426,20.417,24.52]
[1680569469018,0.06080426,20.426,20.42,24.53]
[1680569469219,0.06723463,20.43,20.42,24.53]
[1680569470121,0.06723463,20.43,20.426,24.35]
[1680569470321,0.06360907,20.435,20.429,24.35]
[1680569470516,0.06123129,20.439,20.429,24.35]
[1680569472020,0.06123129,20.439,20.432,24.52]
[1680569473022,108.95706185,20.439,20.432,24.52]
[1680569473221,108.89583056,20.438,20.432,24.52]
[1680569473520,0.06123129,20.439,20.432,24.52]
[1680569474422,108.94213027,20.439,20.432,24.52]
[1680569474620,108.88089898,20.438,20.432,24.52]
[1680569474821,0.06123129,20.439,20.432,24.52]
[1680569476324,0.06123129,20.439,20.429,24.52]
[1680569476622,108.92434431,20.439,20.429,24.52]
[1680569476819,44.9974,20.438,20.429,24.52]
[1680569478527,24.53,20.437,20.426,24.53]
[1680569479525,34.53,20.437,20.426,24.53]
[1680569480226,24.53,20.437,20.426,24.53]
[1680569487628,118.8743231,20.436,20.426,24.53]
[1680569487928,10.0,20.435,20.426,24.53]
[1680569489726,24.39,20.433,20.425,0.06964681]
[1680569489927,24.34,20.43,20.425,0.06964681]
[1680569490129,24.34,20.43,20.42,0.06951371]
[1680569490732,44.5671,20.429,20.42,0.06951371]
[1680569491231,44.5671,20.429,20.421,24.53]
[1680569491620,0.06202554,20.435,20.425,24.53]
[1680569500536,10.06202554,20.435,20.425,24.53]
[1680569501041,0.06202554,20.435,20.425,24.53]
[1680569505140,24.53,20.434,20.423,24.53]
[1680569505642,10.0,20.433,20.423,24.53]
[1680569506442,24.53,20.43,20.42,0.06951371]
[1680569506642,10.0,20.429,20.42,0.06951371]
[1680569507342,24.53,20.43,20.42,0.06951371]
[1680569512544,10.0,20.429,20.42,0.06951371]
[1680569513249,24.34,20.428,20.42,0.06951371]
[1680569513447,10.0,20.427,20.42,0.06951371]
[1680569515451,24.34,20.428,20.42,0.06951371]
[1680569515949,0.0700574,20.431,20.423,24.35]
[1680569516852,0.0700574,20.431,20.421,46.3368]
[1680569516853,0.0700574,20.431,20.425,24.35]
[1680569517052,0.06366307,20.435,20.425,24.35]
[1680569522053,0.06366307,20.435,20.427,24.53]
[1680569522448,0.06366307,20.435,20.421,46.3368]
[1680569522449,24.59366307,20.435,20.424,24.35]
[1680569524254,24.39,20.431,20.421,70.8668]
[1680569524457,10.0,20.43,20.421,70.8668]
[1680569525753,10.0,20.43,20.421,24.53]
[1680569526454,10.0,20.43,20.42,0.06951371]
[1680569526455,24.34,20.428,20.42,0.06951371]
[1680569532161,24.39,20.429,20.42,0.06951371]
[1680569532360,10.0,20.428,20.42,0.06951371]
[1680569533163,24.39,20.429,20.42,0.06951371]
[1680569536466,10.0,20.428,20.42,0.06951371]
[1680569542172,34.53,20.428,20.42,0.06951371]
[1680569543471,24.34,20.424,20.42,0.06951371]
[1680569543770,10.0,20.423,20.415,0.06818522]
[1680569544567,58.0627,20.423,20.415,0.06818522]
[1680569544968,24.53,20.421,20.415,0.06818522]
[1680569545165,10.0,20.42,20.411,0.06605258]
[1680569550767,24.53,20.421,20.411,0.06605258]
[1680569551976,24.53,20.421,20.411,24.59605258]
[1680569555479,10.0,20.42,20.411,24.59605258]